bitfinex-derivatives/quotes_ETHF0:USTF0_20250123
["timestamp","ask_amount","ask_price","bid_price","bid_amount"]
[1737659956600,3.2078,3212.6,3212.1,0.62247]
[1737659956795,0.62244,3212.3,3212.1,0.62247]
[1737659957103,3.2078,3212.6,3212.2,0.62245]
[1737659957394,3.2078,3212.6,3211.8,41.6536]
[1737659957592,0.20899193,3211.9,3211.8,41.6536]
[1737659957793,3.2078,3212.6,3212.1,0.62247]
[1737659958101,0.20907633,3212.5,3212.4,2.9737466]
[1737659958295,0.20907633,3212.7,3212.4,2.9737466]
[1737659958594,0.20907633,3213.2,3213.0,0.6223]
[1737659958795,3.2078,3213.8,3213.0,0.6223]
[1737659958796,3.2078,3213.8,3213.0,46.9815466]
[1737659958998,1.69867218,3213.6,3213.5,3.5959566]
[1737659959195,3.2078,3215.1,3213.5,7.9737466]
[1737659959497,3.2078,3215.6,3215.0,2.9737466]
[1737659959699,3.2078,3216.1,3215.4,6.1815466]
[1737659959902,0.00466527,3215.6,3215.4,2.9737466]
[1737659960097,0.00466527,3215.6,3215.5,0.62182]
[1737659960400,0.00466527,3215.6,3215.1,40.8]
[1737659960600,4.70170374,3215.6,3215.5,0.04256141]
[1737659960803,7.28770374,3215.6,3215.5,0.04256141]
[1737659960997,3.21246527,3215.6,3215.5,0.04256141]
[1737659962008,7.79443179,3215.6,3215.5,0.04256141]
[1737659962805,0.6219,3215.1,3215.0,0.00466527]
[1737659963004,3.8297,3215.1,3215.0,0.00466527]
[1737659963303,3.2078,3215.1,3215.0,0.62658527]
[1737659963503,1.7204,3215.5,3215.4,0.62184]
[1737659963504,4.0675,3215.5,3215.4,0.62184]
[1737659963706,3.2078,3215.5,3215.4,0.62184]
[1737659964294,3.2078,3215.5,3215.4,3.5955866]
[1737659964506,3.41046208,3215.5,3215.4,3.5955866]
[1737659964805,3.2078,3215.5,3215.4,3.5955866]
[1737659965198,3.41048571,3215.5,3215.4,44.3955866]
[1737659965394,3.2078,3215.5,3215.4,3.5955866]
[1737659966299,0.20731005,3215.6,3215.5,0.62182]
[1737659966904,0.00466527,3215.6,3215.5,0.62182]
[1737659967207,0.20731005,3215.6,3215.5,0.62182]
[1737659967406,0.00466527,3215.6,3215.5,0.62182]
[1737659968100,0.00466527,3215.6,3215.4,2.9737466]
[1737659968294,0.00466527,3215.6,3215.4,3.5955866]
[1737659968506,0.00466527,3215.6,3215.4,0.62184]
[1737659968697,0.00466527,3215.6,3215.0,6.18621187]
[1737659968894,0.20244897,3215.2,3215.0,6.18621187]
[1737659969197,0.00466527,3215.6,3215.0,6.18621187]
[1737659969398,0.00466527,3215.6,3215.5,0.62182]
[1737659970199,0.00466527,3215.6,3215.4,2.9737466]
[1737659970398,0.00466527,3215.6,3215.4,3.5955866]
[1737659971097,0.00466527,3215.6,3215.0,3.21246527]
[1737659971098,0.00466527,3215.6,3215.0,6.18621187]
[1737659971303,3.8297,3215.1,3215.0,0.00466527]
[1737659971698,0.62203,3214.5,3214.2,2.9737466]
[1737659971906,9.05643416,3215.1,3213.9,3.2078]
[1737659971907,3.2078,3214.3,3213.9,3.2078]
[1737659972104,0.20225203,3214.1,3213.9,3.82992]
[1737659972299,3.2078,3214.3,3213.9,3.2078]
[1737659972507,0.20223067,3214.0,3213.9,3.82993]
[1737659972705,0.20223219,3214.0,3213.9,3.2078]
[1737659972902,0.2022363,3214.0,3213.9,3.2078]
[1737659973108,0.2022363,3214.0,3213.9,3.82993]
[1737659973511,3.2078,3214.3,3213.9,3.2078]
[1737659973703,0.20217763,3214.0,3213.9,3.82993]
[1737659973904,0.20217643,3214.0,3213.9,3.2078]
[1737659974105,3.2078,3214.3,3214.2,0.62207]
[1737659974503,3.2078,3214.3,3213.9,3.2078]
[1737659974713,0.20217478,3214.1,3214.0,0.62211]
[1737659975013,0.20216796,3214.1,3214.0,0.62211]
[1737659975215,0.20216796,3214.2,3213.8,43.7737466]
[1737659975404,3.40996796,3214.3,3214.2,0.62207]
[1737659975607,0.20222924,3214.4,3214.2,2.9737466]
[1737659975800,0.20222924,3214.6,3214.2,2.9737466]
[1737659976007,3.41002924,3214.9,3214.5,2.9737466]
[1737659976208,3.41002924,3214.9,3214.8,0.62196]
[1737659976512,3.2078,3214.9,3214.8,0.62196]
[1737659976908,3.2078,3214.9,3214.8,41.42196]
[1737659977110,0.62199,3214.7,3214.4,0.62203]
[1737659977314,3.2078,3214.9,3214.1,6.1815466]
[1737659977315,0.20226731,3214.6,3214.1,6.1815466]
[1737659977510,0.20223763,3214.3,3213.9,0.62212]
[1737659977706,0.20223763,3214.3,3214.0,40.8]
[1737659977911,0.20223763,3214.3,3214.0,41.4221]
[1737659978219,0.20222314,3214.3,3214.0,40.8]
[1737659978408,0.20222314,3214.2,3214.0,40.8]
[1737659978609,0.20222314,3214.1,3213.9,0.62211]
[1737659978911,0.20222314,3214.1,3213.6,3.2078]
[1737659978912,3.2078,3214.0,3213.6,3.82998]
[1737659979215,3.2078,3214.0,3213.7,40.8]
[1737659979404,3.2078,3214.0,3213.8,0.62213]
[1737659979813,3.41009257,3214.0,3213.6,3.2078]
[1737659980009,3.2078,3214.0,3213.6,44.62997]
[1737659980416,3.41009257,3214.0,3213.6,44.62997]
[1737659980602,3.2078,3214.0,3213.7,0.62217]
[1737659980915,3.2078,3214.0,3213.6,44.0078]
[1737659981210,4.29767871,3213.9,3212.9,4.0658]
[1737659981409,3.2078,3213.3,3212.4,3.2862437]
[1737659981616,0.8305,3213.2,3212.8,0.62234]
[1737659981812,0.20225783,3213.1,3212.7,0.62235]
[1737659982013,0.8305,3213.2,3212.3,4.1505437]
[1737659982216,0.2021416,3212.7,3212.6,0.62238]
[1737659982711,0.2021416,3212.7,3212.3,4.1505437]
[1737659982927,0.2021416,3212.7,3212.6,0.62238]
[1737659983609,3.2078,3213.3,3212.4,3.2078]
[1737659983809,0.2022023,3213.0,3212.9,0.62232]
[1737659984015,0.2022023,3213.1,3213.0,0.6223]
[1737659984206,0.20221224,3213.1,3212.9,0.8383]
[1737659984402,0.20221224,3213.1,3213.0,0.6223]
[1737659984603,0.20221224,3213.1,3212.9,0.8383]
[1737659984604,0.20221224,3213.2,3213.1,0.62229]
[1737659985112,0.62224,3213.4,3213.1,0.62229]
[1737659985313,0.62222,3213.5,3213.2,41.42226]
[1737659985523,0.80536527,3213.7,3213.2,40.8]
[1737659985816,0.62225,3213.3,3213.2,40.8]
[1737659987720,3.2078,3213.4,3212.8,3.2862437]
[1737659987915,0.62225,3213.3,3213.1,0.62229]
[1737659988419,3.2078,3213.4,3212.3,4.1505437]
[1737659988614,0.20268742,3212.7,3212.6,0.62238]
[1737659988818,0.62231,3213.0,3212.8,0.62234]
[1737659989019,3.83011,3213.0,3212.4,40.8]
[1737659989215,0.20266493,3212.6,3212.5,0.6224]
[1737659989821,0.62247,3212.2,3211.6,3.2078]
[1737659990117,0.20250889,3211.8,3211.7,0.84501393]
[1737659990309,0.20249486,3211.8,3211.7,41.02245393]
[1737659990509,0.20249486,3211.8,3211.7,41.64501393]
[1737659990818,0.20249486,3211.8,3211.7,41.68754953]
[1737659991016,0.20249486,3211.9,3211.7,0.26498953]
[1737659991209,0.62254,3211.8,3211.7,0.26498953]
[1737659991414,0.6225,3212.0,3211.7,0.26498953]
[1737659991715,0.00466527,3212.1,3211.8,0.6650656]
[1737659991919,0.62715527,3212.1,3211.8,0.0425356]
[1737659992116,0.6225,3212.0,3211.8,0.0425356]
[1737659992425,0.00466527,3212.1,3211.8,0.0425356]
[1737659992717,0.62715527,3212.1,3211.8,0.62254]
[1737659992919,0.62715527,3212.1,3211.9,0.0425356]
[1737659993119,0.00466527,3212.1,3211.9,0.0425356]
[1737659993525,0.62715527,3212.1,3211.9,0.0425356]
[1737659993816,4.0639362,3212.0,3210.3,3.2862437]
[1737659994015,0.2018582,3210.4,3210.3,0.62282]
[1737659994212,3.4096582,3210.5,3209.8,3.2862437]
[1737659994412,3.40965956,3210.5,3209.8,3.2862437]
[1737659994725,0.20185956,3210.4,3210.2,0.62284]
[1737659994919,0.20185956,3210.4,3209.8,3.2862437]
[1737659995217,3.2078,3210.0,3209.6,0.62295]
[1737659995423,3.8307,3210.0,3209.4,41.42299]
[1737659995609,3.2078,3210.0,3209.5,0.62297]
[1737659995815,0.82476956,3209.9,3209.4,40.8]
[1737659996013,0.20185956,3209.9,3209.6,0.042571]
[1737659996218,0.62294,3209.7,3209.6,0.042571]
[1737659996710,0.20094978,3209.7,3209.6,0.042571]
[1737659997219,0.82388978,3209.8,3209.6,0.042571]
[1737659997409,0.62294,3209.7,3209.6,0.042571]
[1737659997613,0.20094978,3209.8,3209.6,0.042571]
[1737659997813,3.2078,3210.0,3209.9,0.62291]
[1737659998017,3.2078,3210.4,3209.8,3.2862437]
[1737659998215,3.2078,3210.4,3210.1,0.042571]
[1737659998420,3.2078,3210.4,3210.3,40.8]
[1737659998621,3.40860754,3210.4,3210.3,40.8]
[1737659998816,3.2078,3210.4,3210.3,40.8]
[1737659999125,3.2078,3210.4,3210.3,41.465401]
[1737659999518,3.2078,3210.4,3210.3,40.842571]
[1737659999717,3.2078,3210.4,3210.3,41.465401]
[1737660000022,0.00467275,3210.5,3210.3,44.1288147]
[1737660000320,0.00467275,3210.5,3210.4,0.665381]
[1737660000726,0.00467275,3210.5,3210.4,5.665381]
[1737660000918,3.40883481,3211.4,3210.4,46.465381]
[1737660001121,0.20115022,3211.7,3211.3,6.4940437]
[1737660001421,0.20115022,3211.7,3210.9,1.55678]
[1737660001422,3.2078,3212.3,3211.6,6.4940437]
[1737660001627,3.2078,3212.3,3211.7,0.62256]
[1737660001828,3.2078,3212.3,3211.6,6.4940437]
[1737660001829,3.2078,3212.3,3211.6,3.2078]
[1737660002013,3.21247275,3212.3,3211.7,0.00467275]
[1737660002418,3.21247275,3212.3,3212.0,0.08449469]
[1737660002620,3.21247275,3212.3,3212.0,0.70698469]
[1737660002819,3.21247275,3212.3,3212.0,0.08449469]
[1737660003026,3.21247275,3212.3,3212.1,0.0851364]
[1737660003228,3.83492275,3212.3,3212.1,0.0851364]
[1737660003426,3.21247275,3212.3,3212.1,0.0851364]
[1737660004034,3.21247275,3212.3,3211.7,0.62721275]
[1737660004229,3.83491275,3212.3,3212.2,0.0851364]
[1737660004433,0.62254,3211.8,3211.7,0.00467275]
[1737660006130,3.2078,3211.9,3211.7,0.00467275]
[1737660006332,3.83032,3211.9,3211.7,0.00467275]
[1737660006828,0.62254,3211.8,3211.7,0.00467275]
[1737660007228,3.83033,3211.9,3211.7,0.00467275]
[1737660007436,3.2078,3211.9,3211.7,0.00467275]
[1737660007735,4.58077541,3211.8,3211.7,0.00467275]
[1737660008635,0.62256,3211.7,3210.9,0.62271]
[1737660008835,3.2078,3211.0,3210.1,3.2862437]
[1737660009037,3.2078,3211.0,3210.3,0.62281]
[1737660009038,0.62274,3210.8,3210.3,0.62281]
[1737660009232,3.2078,3211.0,3210.2,40.8]
[1737660009436,0.00467275,3212.3,3210.9,0.62271]
[1737660009636,3.2078,3211.6,3211.5,0.6226]
[1737660010034,3.2078,3211.6,3210.9,3.2078]
[1737660010627,3.2078,3211.6,3210.6,3.2862437]
[1737660010929,0.62263,3211.4,3210.6,3.2862437]
[1737660011140,4.39249745,3211.5,3210.2,44.0078]
[1737660011437,0.62269,3211.1,3210.2,44.0078]
[1737660011733,0.62271,3210.9,3210.5,0.62277]
[1737660011938,0.6227,3211.0,3210.6,0.62276]
[1737660012133,0.6227,3211.0,3210.5,0.62277]
[1737660012341,0.58402398,3211.1,3210.2,44.0078]
[1737660012528,0.58402398,3211.1,3210.4,0.62279]
[1737660012941,0.62273,3210.8,3210.4,0.62279]
[1737660013136,3.2078,3210.8,3210.2,40.8]
[1737660013335,0.62277,3210.6,3210.2,40.8]
[1737660013648,3.2078,3210.7,3209.8,3.2078]
[1737660013839,4.11039547,3210.5,3209.8,3.2078]
[1737660014137,0.00467275,3210.6,3210.2,0.62284]
[1737660014343,0.00467275,3210.6,3209.9,40.8]
[1737660014545,0.00467275,3210.6,3210.3,0.62282]
[1737660014744,0.00467275,3210.6,3210.2,0.0425654]
[1737660015242,0.62283,3210.3,3210.2,0.0425654]
[1737660015433,4.06729276,3210.5,3210.2,0.0425654]
[1737660015633,0.5802646,3210.3,3209.9,41.42289]
[1737660015843,0.00467275,3210.6,3209.9,40.8]
[1737660016045,0.62295,3209.7,3209.3,0.62301]
[1737660016237,3.2078,3209.8,3208.8,3.2078]
[1737660016432,0.62297,3209.6,3209.2,0.62303]
[1737660016637,3.83074,3209.8,3209.4,0.623]
[1737660016839,0.8121,3210.1,3208.9,40.8]
[1737660017038,0.62297,3209.6,3209.2,0.62303]
[1737660017340,0.62299,3209.5,3209.1,0.62305]
[1737660017643,3.2078,3209.8,3209.0,3.2078]
[1737660017838,0.62295,3209.7,3209.0,0.62308]
[1737660018039,0.29215251,3209.7,3208.9,40.8]
[1737660018240,3.2078,3209.2,3208.9,40.8]
[1737660018443,3.2078,3209.2,3207.8,1.55825]
[1737660018740,3.2078,3209.2,3208.2,0.62322]
[1737660018741,0.62314,3208.7,3208.2,0.62322]
[1737660018948,0.58433545,3208.7,3207.8,40.8]
[1737660019445,0.62322,3208.3,3207.9,0.62328]
[1737660019945,0.29218294,3208.3,3207.7,3.2078]
[1737660020243,0.62327,3208.1,3208.0,0.04261353]
[1737660020543,0.62325,3208.2,3208.0,0.04261353]
[1737660020745,3.2078,3208.4,3208.0,0.04261353]
[1737660020746,0.29226775,3208.3,3208.0,0.04261353]
[1737660020949,0.62326,3208.1,3208.0,0.04261353]
[1737660021141,4.33373727,3208.3,3208.2,0.62324]
[1737660021344,0.29227247,3208.3,3208.2,0.66585353]
[1737660021951,0.00467275,3208.8,3208.2,0.04261353]
[1737660022247,0.00467275,3208.8,3208.7,0.62314]
[1737660022450,0.00467275,3208.8,3208.7,0.66575353]
[1737660023746,3.2078,3210.0,3209.1,3.2862437]
[1737660023949,3.2078,3210.0,3209.5,3.2078]
[1737660024144,3.2078,3210.0,3209.7,0.62293]
[1737660024447,3.2078,3210.0,3209.8,0.04261353]
[1737660024747,0.62291,3209.9,3209.8,0.04261353]
[1737660024952,0.29211595,3209.9,3209.8,0.04261353]
[1737660025150,0.62291,3209.9,3209.8,0.04261353]
[1737660025443,3.2078,3210.0,3209.8,0.04261353]
[1737660025654,5.82232697,3209.9,3209.8,0.04261353]
[1737660025845,6.11445494,3209.9,3209.8,0.04261353]
[1737660026449,0.62294,3209.7,3209.6,0.00467275]
[1737660026648,0.62294,3209.7,3208.8,3.83091]
[1737660026649,0.62305,3209.2,3208.8,3.2078]
[1737660026847,0.62303,3209.3,3208.8,3.2078]
[1737660027154,0.62308,3209.0,3208.6,0.62314]
[1737660027353,0.29219373,3209.1,3208.6,3.2078]
[1737660027541,0.91526381,3209.1,3208.7,0.62313]
[1737660027855,3.83085,3209.2,3208.8,0.62312]
[1737660028353,3.2078,3209.2,3208.3,44.0078]
[1737660028540,0.20161977,3208.4,3208.3,41.42322]
[1737660028744,3.2078,3209.2,3208.3,40.8]
[1737660028939,0.9152607,3209.1,3208.7,0.62313]
[1737660029151,3.2078,3209.2,3208.3,44.0078]
[1737660029453,0.20163361,3208.5,3208.3,41.42322]
[1737660029648,3.2078,3209.2,3208.3,41.42322]
[1737660029649,0.20162133,3208.4,3208.3,40.8]
[1737660029845,1.55737,3209.8,3208.3,40.8]
[1737660029846,3.2078,3209.7,3209.6,0.62296]
[1737660030042,3.79209796,3209.7,3209.4,0.623]
[1737660030345,3.2078,3209.7,3209.4,0.62299]
[1737660030539,3.2078,3209.7,3209.1,0.62304]
[1737660030739,3.2078,3209.7,3208.9,3.2078]
[1737660031147,3.83076,3209.7,3208.9,3.2078]
[1737660031350,3.2078,3209.7,3208.9,6.4940437]
[1737660031545,3.21247275,3210.2,3210.1,0.62287]
[1737660031854,0.00467275,3210.2,3210.1,0.62287]
[1737660032350,0.00467275,3210.2,3209.9,3.2078]
[1737660032556,3.2078,3210.1,3208.9,3.2078]
[1737660032853,0.62306,3209.2,3208.9,3.2078]
[1737660033048,0.5840653,3209.6,3208.9,3.2078]
[1737660033444,4.71458046,3209.6,3209.4,0.623]
[1737660033649,0.53290896,3209.5,3208.9,3.2078]
[1737660033851,0.91501254,3209.5,3209.1,0.62305]
[1737660034050,3.2078,3209.2,3208.5,3.2078]
[1737660034256,0.62316,3208.6,3208.5,3.2078]
[1737660034456,3.2078,3208.8,3207.9,3.2862437]
[1737660034755,0.91516254,3208.7,3208.3,0.62321]
[1737660035053,0.62318,3208.5,3208.2,0.62323]
[1737660035352,0.62316,3208.6,3208.2,0.62323]
[1737660035552,0.00467275,3208.7,3208.1,41.42325]
[1737660035857,0.62323,3208.3,3208.0,3.83107]
[1737660036155,0.29689114,3208.7,3208.0,3.2078]
[1737660036361,0.00467275,3208.7,3208.5,0.62317]
[1737660036656,0.00467275,3208.7,3208.4,0.62319]
[1737660037560,0.62782275,3208.7,3208.3,0.6232]
[1737660037745,0.62316,3208.6,3208.3,0.62321]
[1737660037949,0.00467275,3208.7,3208.4,0.62319]
[1737660038148,0.00467275,3208.7,3208.1,0.824]
[1737660038358,0.62781275,3208.7,3208.2,0.62324]
[1737660038550,0.00467275,3208.7,3208.5,0.62317]
[1737660038958,0.62782275,3208.7,3208.4,0.62319]
[1737660039353,0.00467275,3208.7,3208.5,0.04261353]
[1737660039554,0.00467275,3208.7,3208.6,0.62316]
[1737660040056,0.00467275,3208.7,3208.5,0.04261353]
[1737660040260,0.00467275,3208.7,3208.6,3.9094037]
[1737660040452,0.00467275,3208.7,3208.6,0.04261353]
[1737660040654,7.27638519,3208.7,3207.6,3.2862437]
[1737660040854,0.62318,3208.5,3208.1,0.62325]
[1737660041152,0.62325,3208.2,3207.8,0.62331]
[1737660041356,1.99885163,3208.6,3207.7,40.8]
[1737660041559,4.0503744,3208.5,3207.7,40.8]
[1737660041749,1.99885163,3208.6,3208.4,0.62319]
[1737660042059,0.8128,3208.6,3208.5,0.62318]
[1737660042263,0.00467275,3208.7,3208.5,0.62318]
[1737660042460,0.00467275,3208.7,3208.6,0.62316]
[1737660042659,0.00467275,3208.7,3208.4,0.62319]
[1737660042977,0.00467275,3208.7,3208.1,0.62324]
[1737660043175,0.6232,3208.4,3208.1,0.62324]
[1737660043674,3.99192453,3208.3,3207.8,3.2078]
[1737660043876,0.29225793,3208.2,3208.1,0.62325]
[1737660044078,0.62317,3208.6,3207.9,0.62329]
[1737660044276,0.00467275,3208.7,3207.9,0.62329]
[1737660044277,0.62325,3208.2,3207.9,0.62329]
[1737660044469,0.62326,3208.1,3207.6,3.2862437]
[1737660044779,0.62325,3208.2,3207.8,0.6233]
[1737660045075,0.62325,3208.1,3208.0,0.04261353]
[1737660045271,4.61755363,3208.1,3208.0,0.04261353]
[1737660045465,4.90981156,3208.1,3208.0,0.04261353]
[1737660045779,5.20205096,3208.1,3208.0,0.04261353]
[1737660046480,1.20775733,3208.1,3208.0,0.04261353]
[1737660046681,0.9154994,3208.1,3208.0,0.04261353]
[1737660046882,0.62326,3208.1,3208.0,0.04261353]
[1737660047384,1.42539733,3208.3,3208.0,0.04261353]
[1737660047677,0.62324,3208.2,3208.0,0.04261353]
[1737660047878,0.62326,3208.1,3208.0,0.04261353]
[1737660048266,1.42539733,3208.3,3208.0,0.04261353]
[1737660048474,1.1331394,3208.3,3208.0,0.04261353]
[1737660048678,0.62326,3208.1,3208.0,0.04261353]
[1737660048868,0.8409,3208.3,3208.0,0.04261353]
[1737660049073,3.2078,3208.4,3208.0,0.04261353]
[1737660049275,0.00467275,3208.7,3208.3,3.83102]
[1737660049481,0.00467275,3208.7,3208.6,0.62316]
[1737660049672,0.00467275,3208.7,3208.6,3.9094037]
[1737660049976,0.00467275,3208.7,3208.6,8.9094037]
[1737660050178,0.00467275,3208.7,3208.6,44.75201723]
[1737660050678,0.8426,3210.0,3208.6,49.12885723]
[1737660050873,0.29212194,3210.2,3210.1,0.62287]
[1737660051283,3.2078,3210.3,3210.2,0.62285]
[1737660051480,3.4998564,3210.3,3210.2,0.62285]
[1737660051780,0.2920564,3210.3,3210.2,0.62285]
[1737660051978,0.00467275,3210.6,3210.2,0.08522706]
[1737660052182,0.00467275,3210.6,3210.5,0.62279]
[1737660052377,0.29202563,3211.3,3211.2,0.62265]
[1737660052590,0.29197993,3211.8,3211.2,3.2078]
[1737660052882,3.2078,3211.9,3211.8,0.62254]
[1737660053079,3.2078,3211.9,3211.5,0.08522706]
[1737660053269,3.2078,3211.9,3211.6,0.62256]
[1737660053472,3.2078,3211.9,3211.7,0.62254]
[1737660053676,0.00467275,3212.1,3211.7,0.62254]
[1737660053873,0.00467275,3212.1,3211.9,0.08522706]
[1737660054080,0.00467275,3212.1,3212.0,0.6225]
[1737660054375,0.00467275,3212.1,3211.9,0.08522706]
[1737660054587,0.00467275,3212.1,3212.0,0.6225]
[1737660054879,0.00467275,3212.1,3211.7,0.62254]
[1737660055089,0.00467275,3212.1,3212.0,0.08522706]
[1737660055279,0.62715275,3212.1,3212.0,0.08522706]
[1737660055876,0.00467275,3212.1,3211.4,0.00467275]
[1737660056076,0.6226,3211.5,3211.4,0.00467275]
[1737660056281,3.2078,3211.9,3211.4,0.00467275]
[1737660056485,0.6226,3211.5,3211.4,0.00467275]
[1737660056684,4.35366621,3211.8,3211.4,0.00467275]
[1737660056884,4.06170103,3211.8,3211.4,0.00467275]
[1737660057187,0.00467275,3212.1,3211.5,3.2862437]
[1737660057381,3.2078,3214.0,3212.3,3.2862437]
[1737660057585,3.2862437,3214.9,3211.6,0.7766]
[1737660057586,0.62215,3213.9,3213.2,3.83006]
[1737660057780,0.62216,3213.8,3213.1,0.62228]
[1737660058086,3.2078,3213.7,3213.5,0.02851871]
[1737660058281,0.62219,3213.6,3213.5,0.02851871]
[1737660058482,3.82998,3213.7,3213.5,0.02851871]
[1737660058683,0.00467275,3213.9,3213.5,0.02851871]
[1737660058877,0.00467275,3213.9,3213.3,40.80467275]
[1737660058878,3.94719358,3213.6,3213.3,0.00467275]
[1737660059076,0.62223,3213.4,3213.3,0.00467275]
[1737660059283,0.8724,3213.5,3212.3,3.2078]
[1737660059483,3.97571229,3213.4,3212.7,3.2078]
[1737660059689,1.49462,3213.5,3212.8,0.62233]
[1737660059991,0.62226,3213.3,3212.7,3.83015]
[1737660060290,0.62226,3213.3,3212.7,3.2078]
[1737660060488,4.1205753,3213.4,3212.7,3.83483275]
[1737660060685,4.1205753,3213.4,3212.7,0.00467275]
[1737660060686,0.62234,3212.8,3212.7,0.00467275]
[1737660060993,4.0236456,3212.8,3212.0,0.62249]
[1737660061283,3.83018,3212.7,3211.6,3.2078]
[1737660061484,0.62239,3212.6,3212.0,0.62249]
[1737660061687,7.3354536,3212.7,3211.6,3.83037]
[1737660061885,0.62253,3211.9,3211.3,0.62262]
[1737660062076,3.2078,3212.3,3210.9,19.5800437]
[1737660062279,3.83025,3212.3,3211.5,0.62259]
[1737660062481,3.2078,3212.3,3211.6,0.62256]
[1737660062688,0.62257,3211.7,3211.3,0.00467275]
[1737660062889,3.21247275,3211.9,3211.3,0.00467275]
[1737660063083,3.21247275,3211.9,3211.3,3.21247275]
[1737660063084,0.00467275,3211.9,3211.3,3.21247275]
[1737660063278,0.00467275,3211.9,3211.8,0.62254]
[1737660063477,0.00467275,3211.9,3211.7,3.2078]
[1737660063681,4.0564988,3211.9,3211.3,0.00467275]
[1737660063887,0.62261,3211.4,3211.3,0.00467275]
[1737660064080,0.62259,3211.6,3210.5,0.62278]
[1737660064285,0.62269,3211.1,3210.1,3.2078]
[1737660064490,0.62269,3211.1,3210.1,0.62286]
[1737660064791,0.62269,3211.1,3210.6,0.62276]
[1737660064993,3.2078,3211.3,3210.0,3.2078]
[1737660065188,0.62272,3210.9,3210.4,3.2078]
[1737660065487,3.2078,3211.3,3210.4,3.2078]
[1737660065488,4.0817847,3211.2,3210.4,3.2078]
[1737660065700,0.62273,3210.9,3210.4,3.2078]
[1737660065985,0.62275,3210.8,3210.4,3.2078]
[1737660066185,4.07306075,3210.8,3209.6,3.2078]
[1737660066582,3.2078,3211.0,3210.0,3.2078]
[1737660066778,3.2078,3211.0,3210.1,40.8]
[1737660067289,3.2078,3211.0,3210.6,0.62277]
[1737660067589,3.2078,3211.0,3210.1,40.8]
[1737660067781,3.2078,3211.0,3210.6,0.62276]
[1737660067983,3.2078,3211.0,3210.1,40.8]
[1737660068187,3.2078,3211.0,3210.3,0.62281]
[1737660068385,0.62272,3210.9,3210.4,0.62281]
[1737660068589,4.0647,3211.6,3211.1,0.62267]
[1737660068894,0.00467275,3211.9,3211.8,0.62254]
[1737660069291,0.00467275,3211.9,3211.8,41.42254]
[1737660069684,0.00467275,3211.9,3211.8,40.8]
[1737660069993,0.00467275,3211.9,3211.3,3.2078]
[1737660070289,0.00467275,3211.9,3211.8,0.62254]
[1737660071087,0.00467275,3211.9,3211.4,3.2862437]
[1737660071284,0.00467275,3211.9,3211.5,3.2078]
[1737660071487,0.00467275,3211.9,3211.8,0.62254]
[1737660071993,0.00467275,3211.9,3211.6,3.2078]
[1737660072191,0.00467275,3211.9,3211.6,3.83037]
[1737660072396,0.00467275,3211.9,3211.6,3.2078]
[1737660073194,0.00467275,3211.9,3211.8,0.62254]
[1737660073892,0.00467275,3211.9,3211.8,5.62254]
[1737660074189,3.2078,3213.5,3211.8,5.0]
[1737660074392,3.2078,3213.5,3213.4,0.62223]
[1737660074587,4.12851698,3214.2,3214.1,0.62209]
[1737660074791,3.2078,3215.0,3214.1,3.2078]
[1737660074991,3.2078,3215.0,3213.9,3.2078]
[1737660075188,0.62204,3214.4,3214.2,0.00467275]
[1737660075391,0.62205,3214.3,3214.2,0.00467275]
[1737660075586,4.03970337,3214.3,3213.5,3.2078]
[1737660075893,0.62213,3213.9,3213.6,40.8]
[1737660076098,0.62214,3213.9,3213.6,40.8]
[1737660076292,4.05888203,3214.2,3213.6,40.8]
[1737660076495,0.8639,3214.7,3213.5,3.2078]
[1737660076693,4.06192532,3214.3,3213.9,0.62212]
[1737660076888,0.62206,3214.3,3214.0,3.2078]
[1737660077194,0.8639,3214.7,3214.0,3.2078]
[1737660077591,0.62206,3214.3,3214.0,3.2078]
[1737660077890,0.62205,3214.4,3214.0,3.2078]
[1737660078096,0.62206,3214.3,3214.0,3.2078]
[1737660078497,0.62201,3214.5,3214.0,3.8299]
[1737660078697,0.62204,3214.4,3214.0,3.8299]
[1737660078894,0.62208,3214.2,3214.0,3.2078]
[1737660079095,4.12220685,3214.4,3214.0,3.2078]
[1737660079305,0.62208,3214.2,3214.0,3.2078]
[1737660079596,4.12220685,3214.5,3214.0,3.2078]
[1737660079803,4.12220685,3214.6,3214.0,3.2078]
[1737660079804,0.62209,3214.2,3214.0,3.2078]
[1737660080001,3.96269834,3214.4,3213.7,0.62216]
[1737660080195,0.62217,3213.7,3213.6,3.2078]
[1737660080495,0.58343458,3214.0,3213.6,3.2078]
[1737660080698,0.29173357,3214.0,3213.7,0.62215]
[1737660080893,0.6222,3213.6,3213.2,3.2078]
[1737660081090,0.29170101,3213.8,3213.3,0.62224]
[1737660081304,0.58343458,3213.8,3213.2,3.2078]
[1737660081505,0.62218,3213.7,3213.3,0.62224]
[1737660081809,0.62218,3213.7,3213.2,3.83005]
[1737660082502,0.62222,3213.5,3213.2,3.2078]
[1737660082704,0.29170101,3213.8,3213.2,3.2078]
[1737660082898,0.62219,3213.6,3213.2,3.83006]
[1737660083508,0.62219,3213.6,3213.2,3.2078]
[1737660084007,0.62221,3213.5,3213.2,3.2078]
[1737660084406,0.91390101,3213.6,3213.2,3.2078]
[1737660084607,0.6222,3213.6,3213.2,3.2078]
[1737660084994,0.29170101,3213.7,3213.2,3.2078]
[1737660085197,3.2078,3213.3,3212.6,3.2078]
[1737660085498,5.06496126,3213.2,3212.0,3.2078]
[1737660085699,0.79443346,3213.1,3212.4,3.2078]
[1737660085904,0.29170101,3213.0,3212.9,0.62232]
[1737660086207,0.00467275,3213.3,3212.9,3.2078]
[1737660086508,0.00467275,3213.3,3213.2,0.62227]
[1737660087297,0.29173357,3213.8,3213.2,45.8]
[1737660087497,3.57e-06,3213.8,3213.7,3.82997]
[1737660087700,0.79445727,3214.9,3213.7,3.2078]
[1737660087701,1.0,3214.7,3213.7,3.2078]
[1737660087899,1.0,3214.7,3214.6,0.62199]
[1737660088104,1.0,3214.8,3214.7,0.62198]
[1737660088306,1.0,3215.7,3215.6,0.6218]
[1737660088906,0.00466533,3216.0,3215.9,0.62174]
[1737660089113,0.00466533,3216.0,3215.9,3.82954]